bitfinex-derivatives/quotes_BTCF0:USTF0_20240905
["timestamp","ask_amount","ask_price","bid_price","bid_amount"]
[1725538274918,0.003,56696.0,56695.0,1.8889064]
[1725538275517,0.003,56696.0,56695.0,1.81841952]
[1725538277611,0.003,56696.0,56695.0,1.21841952]
[1725538278121,0.003,56696.0,56695.0,1.45841952]
[1725538278307,0.00026452,56701.0,56700.0,0.176374]
[1725538278512,0.00026452,56701.0,56700.0,0.779174]
[1725538278715,0.00026452,56701.0,56700.0,1.908254]
[1725538280019,0.3291,56714.0,56713.0,0.088167]
[1725538280315,0.088164,56715.0,56713.0,0.090167]
[1725538280519,0.088164,56715.0,56714.0,0.002]
[1725538281621,0.096164,56715.0,56714.0,0.002]
[1725538282326,0.097164,56715.0,56714.0,0.002]
[1725538282809,0.009,56715.0,56714.0,0.090166]
[1725538283220,0.00026452,56720.0,56719.0,0.088158]
[1725538283524,0.00026452,56720.0,56719.0,0.450958]
[1725538284415,0.01426452,56720.0,56719.0,0.450958]
[1725538284813,0.01426452,56720.0,56719.0,0.506258]
[1725538285210,0.01026452,56720.0,56719.0,0.506258]
[1725538285422,0.01026452,56720.0,56719.0,1.635178]
[1725538286023,0.3608,56732.0,56719.0,1.78702]
[1725538286225,0.3608,56732.0,56731.0,0.330139]
[1725538286527,0.3608,56738.0,56733.0,0.088136]
[1725538286716,0.448928,56738.0,56737.0,0.242]
[1725538287625,0.448928,56738.0,56737.0,0.002]
[1725538287825,0.088136,56733.0,56732.0,0.00026452]
[1725538288127,0.450936,56733.0,56732.0,0.24026452]
[1725538289917,0.449936,56733.0,56732.0,0.24026452]
[1725538290623,0.452936,56733.0,56732.0,0.32840252]
[1725538290815,0.005,56733.0,56732.0,0.85720252]
[1725538291017,0.005,56733.0,56732.0,1.54534052]
[1725538291618,0.005,56733.0,56732.0,0.85720252]
[1725538292124,0.005,56733.0,56732.0,1.54534052]
[1725538292623,0.00026452,56743.0,56742.0,0.088122]
[1725538292824,0.00026452,56743.0,56742.0,0.328122]
[1725538293020,0.00026452,56743.0,56742.0,0.330122]
[1725538293815,0.00026452,56743.0,56742.0,0.331122]
[1725538293816,0.00726452,56743.0,56742.0,0.331122]
[1725538294625,0.00026452,56743.0,56742.0,0.333122]
[1725538296419,0.00026452,56743.0,56742.0,0.34359082]
[1725538304530,0.00026452,56743.0,56742.0,0.70439082]
[1725538306424,0.00126452,56743.0,56742.0,0.71839082]
[1725538306627,0.13107321,56753.0,56751.0,0.088108]
[1725538306829,0.13107321,56753.0,56752.0,0.002]
[1725538307334,0.0608,56753.0,56752.0,0.002]
[1725538307532,0.148905,56753.0,56752.0,0.002]
[1725538308031,0.154905,56753.0,56752.0,0.003]
[1725538308340,0.154905,56753.0,56752.0,0.005]
[1725538309029,0.154905,56753.0,56752.0,0.01575619]
[1725538309226,0.154905,56753.0,56752.0,0.10386319]
[1725538309440,0.0668,56753.0,56752.0,0.10386319]
[1725538310242,0.006,56753.0,56752.0,0.10386319]
[1725538315240,0.00775,56753.0,56752.0,0.10386319]
[1725538316533,0.04178124,56753.0,56752.0,0.10386319]
[1725538317537,0.16470038,56753.0,56752.0,0.10386319]
[1725538318237,0.16470104,56753.0,56752.0,0.10386319]
[1725538318544,0.0417819,56753.0,56752.0,0.10386319]
[1725538318940,0.05089353,56753.0,56752.0,0.10386319]
[1725538319148,0.0417819,56753.0,56752.0,0.10386319]
[1725538319341,0.08492544,56753.0,56752.0,0.10386319]
[1725538319936,0.0417819,56753.0,56752.0,0.10386319]
[1725538320338,0.04178174,56753.0,56752.0,0.10386319]
[1725538321141,0.12988674,56753.0,56752.0,0.10386319]
[1725538322051,0.14047902,56756.0,56752.0,0.79277019]
[1725538322238,0.14078184,56763.0,56760.0,0.088094]
[1725538322438,0.00104001,56769.0,56762.0,0.6048]
[1725538322439,0.12320755,56764.0,56762.0,0.6048]
[1725538322638,0.12320755,56769.0,56768.0,0.088082]
[1725538322841,0.15722871,56769.0,56768.0,0.328082]
[1725538323051,0.15722871,56769.0,56768.0,0.332082]
[1725538323248,0.03402116,56769.0,56768.0,0.688882]
[1725538323545,0.0609,56779.0,56776.0,0.088069]
[1725538323743,0.3608,56780.0,56778.0,0.244]
[1725538324047,0.3608,56780.0,56779.0,0.10091587]
[1725538324346,0.0599,56791.0,56781.0,0.088062]
[1725538324549,0.3608,56789.0,56784.0,0.088057]
[1725538324737,0.3608,56789.0,56788.0,0.244]
[1725538324939,0.448844,56793.0,56788.0,0.24]
[1725538325143,0.448843,56793.0,56792.0,0.244]
[1725538326048,1.577083,56793.0,56792.0,0.004]
[1725538326546,1.665126,56793.0,56792.0,0.004]
[1725538326748,0.088057,56784.0,56783.0,0.24]
[1725538326946,0.448857,56784.0,56783.0,0.24]
[1725538328437,0.459857,56784.0,56783.0,0.241]
[1725538328640,0.099057,56784.0,56783.0,0.241]
[1725538328848,0.011,56784.0,56783.0,0.241]
[1725538329037,0.011,56784.0,56783.0,0.329058]
[1725538329443,0.011,56784.0,56783.0,0.330058]
[1725538329640,0.099057,56784.0,56783.0,0.242]
[1725538330349,0.099057,56784.0,56783.0,0.002]
[1725538330350,1.227377,56784.0,56783.0,0.002]
[1725538331743,0.099057,56784.0,56783.0,0.002]
[1725538333648,0.099057,56784.0,56783.0,0.090058]
[1725538333649,0.011,56784.0,56783.0,0.090058]
[1725538334152,0.08391437,56793.0,56784.0,0.52828]
[1725538334345,0.3608,56804.0,56792.0,0.3628]
[1725538334346,0.07991437,56804.0,56792.0,0.3628]
[1725538334544,0.3017,56811.0,56803.0,0.6048]
[1725538334741,0.448824,56806.0,56803.0,0.24]
[1725538335550,0.088026,56804.0,56800.0,0.24]
[1725538336046,0.3608,56812.0,56803.0,0.6008]
[1725538336248,0.3608,56812.0,56811.0,0.24]
[1725538336448,1.48888,56812.0,56806.0,0.00026405]
[1725538336663,0.3608,56812.0,56806.0,0.00026405]
[1725538336866,0.088018,56809.0,56806.0,0.00026405]
[1725538337154,0.088018,56810.0,56806.0,0.00026405]
[1725538337364,0.3608,56812.0,56809.0,0.004]
[1725538337660,0.088016,56811.0,56809.0,0.004]
[1725538338362,0.03400015,56810.0,56809.0,0.004]
[1725538338564,0.088016,56811.0,56809.0,0.004]
[1725538338755,0.088016,56811.0,56810.0,0.004]
[1725538338950,0.48281548,56811.0,56810.0,0.004]
[1725538339258,0.448816,56811.0,56810.0,0.004]
[1725538340062,0.48281577,56811.0,56810.0,0.004]
[1725538340263,0.448816,56811.0,56810.0,0.004]
[1725538340461,0.448816,56811.0,56810.0,0.005]
[1725538340663,0.48281577,56811.0,56810.0,0.006]
[1725538341365,0.48281589,56811.0,56810.0,0.005]
[1725538346467,0.448816,56811.0,56810.0,0.005]
[1725538347064,0.448816,56811.0,56810.0,0.093017]
[1725538347564,0.088016,56811.0,56810.0,0.093017]
[1725538351071,0.088016,56811.0,56810.0,0.01553486]
[1725538351263,0.088016,56811.0,56810.0,0.005]
[1725538353258,0.776832,56811.0,56810.0,0.005]
[1725538353467,1.992928,56811.0,56810.0,0.005]
[1725538353665,2.09752652,56811.0,56810.0,0.005]
[1725538354166,1.392928,56811.0,56810.0,0.005]
[1725538354368,1.152928,56811.0,56810.0,0.005]
[1725538354773,0.536832,56811.0,56810.0,0.005]
[1725538355677,0.448816,56811.0,56810.0,0.093017]
[1725538355969,0.088016,56811.0,56810.0,0.213117]
[1725538356569,0.507306,56818.0,56813.0,0.088011]
[1725538356570,0.088011,56814.0,56813.0,0.088011]
[1725538356780,0.088011,56814.0,56813.0,0.332011]
[1725538358067,0.3608,56818.0,56816.0,0.088007]
[1725538358373,0.3909,56826.0,56813.0,0.247]
[1725538358374,0.08695043,56825.0,56824.0,0.087995]
[1725538358573,0.001,56827.0,56826.0,0.087992]
[1725538358772,0.6899,56834.0,56826.0,0.01269778]
[1725538358967,0.6899,56834.0,56833.0,0.331981]
[1725538359283,0.3291,56834.0,56833.0,0.688781]
[1725538360572,0.3291,56834.0,56833.0,0.089981]
[1725538360878,0.3291,56834.0,56833.0,0.329981]
[1725538361068,0.3291,56834.0,56833.0,0.328981]
[1725538362179,0.3291,56834.0,56833.0,0.327981]
[1725538362382,0.3291,56834.0,56833.0,0.328981]
[1725538363579,0.087972,56839.0,56834.0,0.087978]
[1725538363785,0.087972,56839.0,56838.0,0.6048]
[1725538363983,0.448765,56844.0,56838.0,0.244]
[1725538364280,0.448765,56844.0,56834.0,0.24]
[1725538364281,0.087978,56835.0,56834.0,0.24]
[1725538365382,0.087978,56835.0,56834.0,0.241]
[1725538370793,0.087978,56835.0,56834.0,0.328979]
[1725538372086,0.087972,56839.0,56837.0,0.087975]
[1725538372386,0.087972,56839.0,56834.0,0.241]
[1725538372387,0.087972,56839.0,56838.0,0.244]
[1725538373992,0.087972,56839.0,56838.0,0.245]
[1725538374482,0.06996196,56844.0,56838.0,1.792]
[1725538374690,0.3291,56845.0,56843.0,0.244]
[1725538374886,0.087964,56844.0,56843.0,0.244]
[1725538375588,0.448764,56844.0,56843.0,0.244]
[1725538375979,0.448764,56844.0,56843.0,0.245]
[1725538376385,0.536728,56844.0,56843.0,0.245]
[1725538377086,0.536728,56844.0,56843.0,0.246]
[1725538379289,0.087964,56844.0,56843.0,0.246]
[1725538379685,0.04395735,56844.0,56843.0,0.333965]
[1725538381083,0.04395735,56844.0,56843.0,0.337965]
[1725538381491,0.3608,56848.0,56845.0,0.087962]
[1725538381684,0.448758,56848.0,56847.0,0.244]
[1725538382790,0.536716,56848.0,56847.0,0.244]
[1725538383883,0.536716,56848.0,56847.0,0.245]
[1725538383884,0.448758,56848.0,56847.0,0.245]
[1725538384186,0.3608,56855.0,56847.0,0.332959]
[1725538384388,0.087958,56848.0,56847.0,0.1455639]
[1725538384584,0.087958,56848.0,56847.0,0.1415639]
[1725538384985,0.448758,56848.0,56847.0,0.001]
[1725538385297,0.448758,56848.0,56847.0,0.241]
[1725538386092,0.448758,56848.0,56847.0,0.242]
[1725538386394,0.448758,56848.0,56847.0,0.241]
[1725538386895,0.448758,56848.0,56847.0,0.242]
[1725538387285,0.448758,56848.0,56847.0,0.329959]
[1725538387286,0.3608,56848.0,56847.0,0.329959]
[1725538389189,0.3608,56848.0,56847.0,0.34022384]
[1725538389390,0.3608,56848.0,56847.0,0.10022384]
[1725538389584,0.536716,56848.0,56847.0,0.25226484]
[1725538390089,0.448758,56848.0,56847.0,0.25226484]
[1725538390691,0.536716,56848.0,56847.0,0.25226484]
[1725538390890,0.536716,56848.0,56847.0,0.01226484]
[1725538391090,0.536716,56848.0,56847.0,0.002]
[1725538391389,0.5706964,56848.0,56847.0,0.002]
[1725538393419,0.5706964,56848.0,56847.0,0.242]
[1725538394898,0.08799,56827.0,56824.0,0.004]
[1725538395100,0.10531258,56830.0,56826.0,0.4086]
[1725538395286,0.19329858,56830.0,56829.0,0.24]
[1725538395491,0.087986,56830.0,56829.0,0.244]
[1725538396598,0.12197357,56830.0,56829.0,0.258]
[1725538396991,0.12197357,56830.0,56829.0,0.255]
[1725538397298,0.087986,56830.0,56829.0,0.261]
[1725538397601,0.087986,56830.0,56829.0,0.244]
[1725538397798,0.087986,56830.0,56829.0,0.248]
[1725538402396,0.3608,56831.0,56830.0,0.087986]
[1725538402702,0.00026248,56835.0,56834.0,0.087979]
[1725538403005,0.00026248,56835.0,56834.0,0.089979]
[1725538403197,0.00026248,56835.0,56834.0,0.087979]
[1725538403896,0.08924048,56835.0,56834.0,0.087979]
[1725538404804,0.08924048,56835.0,56834.0,0.086229]
[1725538405103,0.175958,56834.0,56833.0,0.24]
[1725538405305,0.177958,56834.0,56833.0,0.24]
[1725538405804,0.237858,56834.0,56833.0,0.24]
[1725538406006,0.149879,56834.0,56830.0,0.002]
[1725538406205,0.538768,56831.0,56830.0,0.002]
[1725538406605,0.535768,56831.0,56830.0,0.002]
[1725538407305,0.535768,56831.0,56830.0,0.005]
[1725538407707,0.535768,56831.0,56830.0,0.003]
[1725538408004,0.535768,56831.0,56830.0,0.005]
[1725538408497,0.623752,56831.0,56830.0,0.005]
[1725538408895,0.623752,56831.0,56830.0,0.004]
[1725538409097,0.624752,56831.0,56830.0,0.005]
[1725538409907,0.536768,56831.0,56830.0,0.245]
[1725538410211,0.51887999,56831.0,56830.0,0.245]
[1725538410404,0.448784,56831.0,56830.0,0.245]
[1725538411211,0.448784,56831.0,56830.0,0.25560106]
[1725538411414,0.448784,56831.0,56830.0,0.245]
[1725538411915,0.448784,56831.0,56830.0,0.3054]
[1725538415104,0.53653027,56831.0,56830.0,0.005]
[1725538415315,0.448784,56831.0,56830.0,0.005]
[1725538417212,0.536768,56831.0,56830.0,0.005]
[1725538418816,0.448784,56831.0,56830.0,0.245]
[1725538419017,0.55403946,56831.0,56830.0,0.245]
[1725538419218,0.448784,56831.0,56830.0,0.245]
[1725538419419,0.55408103,56831.0,56830.0,0.245]
[1725538420211,0.448784,56831.0,56830.0,0.245]
[1725538420714,0.51900012,56831.0,56830.0,0.245]
[1725538421216,0.448784,56831.0,56830.0,0.245]
[1725538422123,0.51901888,56831.0,56830.0,0.245]
[1725538422310,0.51903763,56831.0,56830.0,0.245]
[1725538423006,0.448784,56831.0,56830.0,0.332986]
[1725538423211,0.448784,56831.0,56830.0,0.38549282]
[1725538424214,0.448784,56831.0,56830.0,0.332986]
[1725538424410,0.3638,56831.0,56830.0,0.332986]
[1725538426920,0.451784,56831.0,56830.0,0.332986]
[1725538427419,0.3638,56831.0,56830.0,0.332986]
[1725538428822,0.3977857,56831.0,56830.0,0.332986]
[1725538430115,0.0369857,56831.0,56830.0,0.332986]
[1725538430721,0.03698555,56831.0,56830.0,0.332986]
[1725538431116,0.003,56831.0,56830.0,0.332986]
[1725538431412,0.003,56831.0,56830.0,0.331576]
[1725538432427,0.003,56831.0,56830.0,0.330576]
[1725538433424,0.003,56831.0,56830.0,0.333986]
[1725538434326,0.003,56831.0,56830.0,1.910652]
[1725538434920,0.10544853,56834.0,56833.0,0.087981]
[1725538435118,0.10571101,56835.0,56834.0,0.175958]
[1725538435327,0.00541,56841.0,56840.0,0.08797]
[1725538435625,0.00541,56841.0,56840.0,0.40011169]
[1725538435821,0.00541,56841.0,56840.0,0.39811169]
[1725538436230,0.00541,56841.0,56840.0,0.32797]
[1725538436414,0.00541,56841.0,56840.0,0.39811169]
[1725538436615,0.00541,56841.0,56840.0,0.45431169]
[1725538437232,0.00841,56841.0,56840.0,0.38417]
[1725538437433,0.00841,56841.0,56840.0,0.46499603]
[1725538437820,0.00541,56841.0,56840.0,0.46999603]
[1725538439532,0.00541,56841.0,56840.0,0.47099603]
[1725538440036,0.00541,56841.0,56840.0,0.46499603]
[1725538440235,0.3608,56848.0,56847.0,0.087959]
[1725538440438,0.3608,56848.0,56847.0,0.331959]
[1725538442333,0.3608,56848.0,56847.0,0.332959]
[1725538443643,0.39477698,56848.0,56847.0,0.332959]
[1725538443942,0.51753722,56848.0,56847.0,0.332959]
[1725538444935,0.39477698,56848.0,56847.0,0.332959]
[1725538446547,0.48273498,56848.0,56847.0,0.332959]
[1725538446840,0.48273498,56848.0,56847.0,0.34324286]
[1725538447636,0.48273498,56848.0,56847.0,0.35024286]
[1725538448147,0.48273498,56848.0,56847.0,0.34324286]
[1725538448735,0.48273498,56848.0,56847.0,0.25428386]
[1725538449338,0.48273498,56848.0,56847.0,0.34224286]
[1725538450042,0.39477698,56848.0,56847.0,0.34224286]
[1725538450246,0.39477698,56848.0,56847.0,0.34724286]
[1725538450650,0.3608,56848.0,56847.0,0.34424286]
[1725538450842,0.3608,56848.0,56847.0,0.34524286]
[1725538451337,0.3608,56848.0,56847.0,0.34924286]
[1725538451844,0.3608,56848.0,56847.0,0.34824286]
[1725538453348,0.3608,56848.0,56847.0,0.34624286]
[1725538454248,0.087956,56849.0,56847.0,0.34624286]
[1725538454249,0.448756,56849.0,56848.0,0.087958]
[1725538454434,0.448756,56849.0,56848.0,0.091958]
[1725538455149,0.087956,56849.0,56848.0,0.091958]
[1725538455353,0.3608,56854.0,56848.0,0.05655363]
[1725538455667,0.448749,56854.0,56853.0,0.004]
[1725538456339,0.448749,56854.0,56853.0,0.01301041]
[1725538456543,0.448749,56854.0,56853.0,0.10096041]
[1725538458544,0.448749,56854.0,56853.0,0.10196041]
[1725538458848,0.448749,56854.0,56853.0,0.11226856]
[1725538459243,0.55393914,56854.0,56853.0,0.11226856]
[1725538460062,0.448749,56854.0,56853.0,0.11226856]
[1725538462253,0.48272244,56854.0,56853.0,0.11226856]
[1725538463254,0.4827223,56854.0,56853.0,0.11226856]
[1725538464055,0.4827223,56854.0,56853.0,0.10325815]
[1725538464757,0.4827223,56854.0,56853.0,0.11210722]
[1725538465749,0.4827223,56854.0,56853.0,0.16466085]
[1725538465750,0.448749,56854.0,56853.0,0.16466085]
[1725538466054,0.448749,56854.0,56853.0,0.26466085]
[1725538468859,0.448749,56854.0,56853.0,0.21210722]
[1725538469650,0.448749,56854.0,56853.0,0.26473676]
[1725538471954,0.448749,56854.0,56853.0,0.21210722]
[1725538472154,0.448749,56854.0,56853.0,0.26473908]
[1725538472358,0.448749,56854.0,56853.0,0.21210722]
[1725538472662,0.3608,56866.0,56861.0,0.087937]
[1725538472865,0.3608,56866.0,56865.0,0.191931]
[1725538474161,0.3608,56866.0,56865.0,0.004]
[1725538474361,0.3608,56866.0,56865.0,0.104]
[1725538474557,0.3608,56866.0,56865.0,0.105]
[1725538474958,0.3608,56866.0,56865.0,0.1155754]
[1725538475668,0.10544492,56876.0,56865.0,0.1155754]
[1725538475853,0.1247,56872.0,56865.0,0.3763754]
[1725538476055,0.1247,56872.0,56870.0,0.24]
[1725538477465,0.1247,56872.0,56870.0,0.241]
[1725538477857,0.1247,56872.0,56870.0,0.242]
[1725538478057,0.1247,56872.0,56870.0,0.329923]
[1725538479860,0.1247,56872.0,56870.0,0.002]
[1725538480061,0.087922,56871.0,56870.0,0.002]
[1725538480864,0.16494588,56871.0,56870.0,0.002]
[1725538481460,0.12188707,56871.0,56870.0,0.242]
[1725538481769,0.15672535,56871.0,56870.0,0.242]
[1725538482077,0.03396507,56871.0,56870.0,0.002]
[1725538482366,0.24464494,56871.0,56870.0,0.242]
[1725538483160,0.24464494,56871.0,56870.0,0.241]
[1725538483361,0.24464494,56871.0,56870.0,0.242]
[1725538487266,0.15671216,56871.0,56870.0,0.329924]
[1725538488766,0.087921,56872.0,56870.0,0.329924]
[1725538488966,0.087921,56872.0,56871.0,0.24]
[1725538489165,0.087921,56872.0,56871.0,0.244]
[1725538489360,0.087921,56872.0,56871.0,0.004]
[1725538489565,0.087921,56872.0,56871.0,0.244]
[1725538490260,0.087921,56872.0,56871.0,0.004]
[1725538490261,0.536642,56872.0,56871.0,0.004]
[1725538490463,0.536642,56872.0,56870.0,0.002]
[1725538490464,0.175844,56871.0,56870.0,0.002]
[1725538490668,0.415844,56871.0,56870.0,0.002]
[1725538490985,0.415844,56871.0,56870.0,0.001]
[1725538491180,0.08793,56866.0,56865.0,0.0105754]
[1725538491476,0.087931,56865.0,56864.0,0.24]
[1725538491778,0.087931,56865.0,56864.0,0.327933]
[1725538491974,0.087926,56869.0,56867.0,0.087927]
[1725538492168,0.087926,56869.0,56868.0,0.244]
[1725538493879,0.087926,56869.0,56868.0,0.331927]
[1725538494068,0.087926,56869.0,56868.0,0.332927]
[1725538494372,0.087926,56869.0,56868.0,0.333927]
[1725538496061,0.087926,56869.0,56868.0,0.193927]
[1725538498568,0.3648,56872.0,56871.0,0.087922]
[1725538498773,0.3648,56872.0,56871.0,0.189922]
[1725538498972,0.452721,56872.0,56871.0,0.189922]
[1725538500076,0.452721,56872.0,56871.0,0.003]
[1725538500270,0.452721,56872.0,56871.0,0.004]
[1725538500472,0.452721,56872.0,56871.0,0.191922]
[1725538501074,0.540642,56872.0,56871.0,0.004]
[1725538501279,0.615442,56871.0,56859.0,0.04260283]
[1725538501479,0.615442,56871.0,56844.0,0.08767138]
[1725538501480,0.087962,56845.0,56844.0,0.0526555]
[1725538501669,0.450763,56845.0,56840.0,0.0526555]
[1725538501873,0.448762,56845.0,56844.0,0.1]
[1725538502065,0.448762,56845.0,56839.0,0.0526555]
[1725538502066,0.087968,56842.0,56841.0,0.1]
[1725538502376,0.102,56842.0,56836.0,0.1]
[1725538502583,0.087972,56839.0,56838.0,0.1]
[1725538502770,0.087972,56839.0,56836.0,0.00026381]
[1725538502771,0.165,56844.0,56840.0,0.1]
[1725538502968,0.087975,56837.0,56836.0,0.00026381]
[1725538503182,0.189975,56837.0,56836.0,0.00026381]
[1725538503380,0.087987,56830.0,56824.0,0.00112]
[1725538503680,1.317815,56837.0,56818.0,0.3608]
[1725538503681,0.088003,56819.0,56818.0,0.3608]
[1725538503875,0.088003,56819.0,56816.0,0.0526555]
[1725538503876,0.102,56819.0,56811.0,0.06293008]
[1725538504083,0.102,56819.0,56807.0,0.4309371]
[1725538504084,0.002,56812.0,56807.0,0.3608]
[1725538504269,0.08801,56815.0,56810.0,0.24]
[1725538504586,0.088019,56809.0,56807.0,0.36106381]
[1725538504782,0.002,56808.0,56807.0,0.36106381]
[1725538504973,0.002,56808.0,56807.0,0.24026381]
[1725538505284,0.448819,56809.0,56807.0,0.00026381]
[1725538505577,0.448819,56809.0,56808.0,0.002]
[1725538505994,1.576899,56809.0,56808.0,0.002]
[1725538506183,1.576899,56809.0,56791.0,0.3608]
[1725538506184,0.088036,56798.0,56791.0,0.3608]
[1725538506381,0.002,56792.0,56791.0,0.3608]
[1725538506777,0.242,56792.0,56791.0,0.3608]
[1725538507081,0.242,56792.0,56785.0,0.37144688]
[1725538507082,0.676845,56792.0,56785.0,0.01064688]
[1725538507269,0.3608,56798.0,56783.0,0.00026405]
[1725538507270,0.002,56786.0,56783.0,0.00026405]
[1725538507471,0.002,56784.0,56783.0,0.00026405]
[1725538507673,0.24,56784.0,56783.0,0.00026405]
[1725538508076,0.76732,56784.0,56783.0,0.00026405]
[1725538508280,0.76732,56784.0,56769.0,0.3608]
[1725538508281,1.36732,56784.0,56769.0,0.3608]
[1725538508476,0.3608,56786.0,56769.0,0.3608]
[1725538508477,0.002,56770.0,56769.0,0.3608]
[1725538509076,0.242,56770.0,56769.0,0.3608]
[1725538509270,0.6028,56770.0,56764.0,0.00026405]
[1725538509470,0.002,56765.0,56764.0,0.00026405]
[1725538509685,0.330086,56765.0,56764.0,0.00026405]
[1725538509871,0.002,56765.0,56758.0,0.24]
[1725538510077,0.002,56765.0,56764.0,0.24]
[1725538510276,0.088082,56768.0,56764.0,0.24]
[1725538510485,0.00026405,56775.0,56767.0,0.242]
[1725538510674,0.24,56769.0,56767.0,0.002]
[1725538510873,0.328081,56769.0,56767.0,0.002]
[1725538511077,0.088081,56769.0,56767.0,0.002]
[1725538511286,0.088089,56763.0,56762.0,0.00026405]
[1725538511485,0.418178,56763.0,56762.0,5e-08]
[1725538511789,0.418178,56763.0,56733.0,0.24]
[1725538511790,0.088094,56760.0,56733.0,0.24]
[1725538511984,0.088122,56742.0,56741.0,0.24]
[1725538512675,0.3608,56748.0,56741.0,0.24]
[1725538512676,0.08838028,56747.0,56741.0,0.24]
[1725538512883,0.08838028,56747.0,56746.0,0.002]
[1725538512884,0.00026428,56747.0,56746.0,0.002]
[1725538513081,0.08837828,56747.0,56746.0,0.002]
[1725538514285,0.00026428,56747.0,56746.0,0.002]
[1725538514483,0.24,56754.0,56746.0,0.002]
[1725538514687,0.328103,56754.0,56753.0,0.002]
[1725538515485,1.456703,56754.0,56753.0,0.002]
[1725538515875,1.456703,56754.0,56748.0,0.00026428]
[1725538515876,0.088111,56749.0,56748.0,0.00026428]
[1725538516075,0.088136,56733.0,56732.0,0.3608]
[1725538516280,0.0920788,56733.0,56732.0,0.3608]
[1725538516587,0.0920788,56733.0,56722.0,0.01059237]
[1725538516588,0.1782148,56733.0,56722.0,0.01059237]
[1725538516883,0.1782148,56733.0,56721.0,0.3608]
[1725538516884,0.090152,56723.0,56721.0,0.3608]
[1725538517087,0.090152,56723.0,56712.0,0.01050411]
[1725538517088,0.002,56722.0,56712.0,0.01050411]
[1725538517282,0.088161,56717.0,56716.0,0.00017755]
[1725538517477,0.088161,56717.0,56716.0,5.5e-07]
[1725538517478,0.176322,56717.0,56716.0,5.5e-07]
[1725538517679,0.416322,56717.0,56716.0,5.5e-07]
[1725538517992,0.476322,56717.0,56716.0,5.5e-07]
[1725538518488,0.002,56722.0,56716.0,5.5e-07]
[1725538518688,0.450953,56722.0,56721.0,0.002]
[1725538518884,0.090153,56722.0,56721.0,0.002]
[1725538519078,0.002,56722.0,56721.0,0.3628]
[1725538519277,0.002,56722.0,56721.0,0.750955]
[1725538519589,0.002,56722.0,56721.0,0.3628]
[1725538521188,0.002,56722.0,56721.0,1.79168]
[1725538521582,0.002,56722.0,56721.0,1.19168]
[1725538521890,0.00026428,56728.0,56722.0,0.088153]
[1725538522080,0.00026428,56728.0,56727.0,0.752945]
[1725538522277,0.00026428,56728.0,56727.0,1.281785]
[1725538522588,0.00026428,56728.0,56727.0,0.752945]
[1725538522784,0.00026428,56728.0,56727.0,1.881785]
[1725538523788,0.088122,56742.0,56727.0,1.79364]
[1725538523985,0.088122,56742.0,56741.0,0.002]
[1725538526192,0.448922,56742.0,56741.0,0.002]
[1725538527297,0.088122,56742.0,56741.0,0.002]
[1725538527895,0.44917928,56747.0,56741.0,0.002]
[1725538528088,0.088119,56744.0,56741.0,0.002]
[1725538528287,0.088119,56744.0,56740.0,0.088125]
[1725538528504,0.36106428,56747.0,56739.0,0.3]
[1725538528505,0.002,56741.0,56739.0,0.3]
[1725538528796,0.3608,56742.0,56736.0,0.00138428]
[1725538529091,0.002,56737.0,56736.0,0.00026428]
[1725538529395,0.09013,56737.0,56736.0,0.00026428]
[1725538529797,0.002,56737.0,56736.0,0.00026428]
[1725538529995,0.002,56737.0,56736.0,1.87795528]
[1725538530183,0.08838028,56747.0,56741.0,0.088124]
[1725538530391,0.08838028,56747.0,56746.0,0.002]
[1725538531197,0.17649428,56747.0,56746.0,0.002]
[1725538531496,0.08813,56737.0,56736.0,0.00026428]
[1725538531700,0.002,56737.0,56736.0,0.00026428]
[1725538531894,0.09013,56737.0,56736.0,0.00026428]
[1725538532197,0.002,56737.0,56736.0,0.00026428]
[1725538532383,0.09013,56737.0,56736.0,0.00026428]
[1725538532995,0.002,56737.0,56736.0,0.30026428]
[1725538533190,0.09013,56737.0,56736.0,0.08839528]
[1725538533793,0.09013,56737.0,56736.0,0.00026428]
[1725538534004,1.06782,56737.0,56736.0,0.00026428]
[1725538534494,1.75595,56737.0,56736.0,2.8e-07]
[1725538535095,1.86595,56737.0,56736.0,2.8e-07]
[1725538535297,2.16595,56737.0,56713.0,0.0526555]
[1725538535494,2.16595,56737.0,56711.0,0.05359265]
[1725538535495,0.002,56714.0,56711.0,0.05359265]
[1725538535796,0.088175,56708.0,56707.0,0.042]
[1725538536008,0.090175,56708.0,56707.0,0.042]
[1725538536196,0.313865,56716.0,56707.0,0.1121371]
[1725538536502,0.402027,56716.0,56715.0,0.002]
[1725538537502,0.762827,56716.0,56715.0,0.002]
[1725538538006,0.402027,56716.0,56715.0,0.002]
[1725538538198,0.402027,56716.0,56715.0,0.05434437]
[1725538538394,0.402027,56716.0,56715.0,0.002]
[1725538538893,0.00026428,56717.0,56715.0,0.302]
[1725538539099,0.088162,56716.0,56715.0,0.07198047]
[1725538539295,0.088162,56716.0,56712.0,0.05249416]
[1725538539296,0.3608,56716.0,56712.0,0.05249416]
[1725538539499,0.3608,56716.0,56713.0,0.05249416]
[1725538539702,0.088164,56715.0,56714.0,0.05249416]
[1725538539905,0.088164,56715.0,56713.0,0.05251786]
[1725538540207,0.088164,56715.0,56710.0,0.06998047]
[1725538540208,0.088173,56709.0,56708.0,0.05251786]
[1725538540504,0.088175,56708.0,56707.0,0.11798047]
[1725538540697,0.088175,56708.0,56707.0,0.048]
[1725538540698,0.090175,56708.0,56707.0,0.048]